bitfinex-derivatives/quotes_ETHF0:USTF0_20250803
["timestamp","ask_amount","ask_price","bid_price","bid_amount"]
[1754228847644,1.60896,3486.4,3486.3,4.5083]
[1754228847848,0.8388,3486.9,3486.3,2.1572]
[1754228848154,0.57371,3486.1,3486.0,0.8567]
[1754228848344,0.8388,3486.8,3486.1,1.2823]
[1754228848549,0.5919,3486.5,3486.4,0.8749]
[1754228848850,0.5919,3486.5,3486.4,1.742]
[1754228848851,2.179,3486.5,3486.4,1.742]
[1754228849155,1.8014,3486.5,3486.4,2.1572]
[1754228849345,1.01698,3486.9,3486.4,2.1572]
[1754228849552,0.85392,3486.7,3486.6,0.8749]
[1754228849749,2.47654893,3486.7,3486.6,2.1572]
[1754228850758,0.86762893,3486.7,3486.6,2.1572]
[1754228851750,1.31102893,3486.7,3486.6,2.1572]
[1754228852158,0.86762893,3486.7,3486.6,2.1572]
[1754228853453,0.86762893,3486.7,3486.6,2.4436]
[1754228854056,1.92312893,3486.7,3486.6,2.1572]
[1754228854257,2.76192893,3486.7,3486.6,1.742]
[1754228854660,2.07942893,3486.7,3486.6,2.1572]
[1754228854958,1.61822893,3486.7,3486.6,2.1572]
[1754228855361,2.07942893,3486.7,3486.6,2.1572]
[1754228855760,0.5919,3486.5,3486.4,1.0266]
[1754228855962,1.4965,3486.5,3486.4,2.1572]
[1754228856760,1.4965,3486.5,3486.4,1.742]
[1754228856960,1.4965,3486.5,3486.4,2.1572]
[1754228858261,1.01702,3486.7,3486.4,2.1572]
[1754228858464,0.4434,3486.6,3486.5,1.8674]
[1754228858664,2.06223002,3487.1,3487.0,2.1572]
[1754228858866,2.63578002,3487.1,3487.0,2.1572]
[1754228859172,3.09698002,3487.1,3487.0,2.1572]
[1754228859372,2.07005,3487.1,3487.0,2.1572]
[1754228859766,1.4965,3487.1,3487.0,2.1572]
[1754228860168,0.3116,3487.1,3487.0,2.1572]
[1754228860376,1.0353,3487.2,3487.1,2.1572]
[1754228860672,1.0353,3487.2,3487.1,1.742]
[1754228860868,2.179,3487.2,3487.1,1.742]
[1754228861067,1.0353,3486.8,3486.7,4.5242]
[1754228861270,1.4965,3486.8,3486.7,4.9394]
[1754228861767,4.23473002,3487.4,3486.7,4.9394]
[1754228861768,4.1046,3487.4,3487.3,0.8749]
[1754228861974,4.9434,3487.4,3487.3,1.742]
[1754228862372,5.9603,3487.4,3487.3,1.742]
[1754228862880,5.0092,3487.4,3487.3,2.1572]
[1754228863174,5.3868,3487.4,3487.3,0.7154]
[1754228863576,2.179,3487.4,3487.3,0.7154]
[1754228863966,0.2807,3487.2,3487.1,0.4463]
[1754228864175,0.8682,3486.9,3486.6,0.7364]
[1754228864382,2.2063,3486.7,3486.6,0.7364]
[1754228864676,2.2063,3486.7,3486.6,1.817]
[1754228866174,1.8264,3486.7,3486.6,2.2776]
[1754228866369,0.4386,3486.9,3486.7,1.3917]
[1754228866573,0.7193,3486.9,3486.8,2.2776]
[1754228866877,0.5791,3486.6,3486.5,1.4983]
[1754228867072,0.8995,3486.6,3486.5,1.817]
[1754228867279,2.2063,3486.6,3486.5,1.817]
[1754228867977,0.57379,3485.6,3485.5,3.2078]
[1754228868174,8.14835743,3485.6,3485.5,0.4463]
[1754228868483,1.4373,3485.5,3485.4,0.2901]
[1754228868679,2.2063,3485.5,3485.4,1.0135]
[1754228868879,1.01236,3485.8,3485.7,1.817]
[1754228869179,0.57381,3485.5,3485.4,3.6926]
[1754228869487,2.78011,3485.5,3485.4,5.0248]
[1754228869669,2.40021,3485.5,3485.4,5.0248]
[1754228869874,1.528,3485.5,3485.4,5.4854]
[1754228871082,2.40061931,3485.5,3485.4,5.4854]
[1754228871281,1.528,3485.5,3485.4,5.4854]
[1754228871982,0.6011,3485.1,3485.0,1.3322]
[1754228872284,1.47339,3485.0,3484.8,0.4463]
[1754228872483,1.3381,3484.9,3484.8,2.2776]
[1754228872782,1.8264,3485.2,3485.1,0.8859]
[1754228872978,1.8264,3485.2,3485.1,1.817]
[1754228873478,0.4386,3485.3,3485.2,0.7507]
[1754228873677,1.528,3485.6,3485.5,0.5672]
[1754228873883,1.528,3485.6,3485.5,1.817]
[1754228874176,1.0397,3485.6,3485.5,1.817]
[1754228874381,1.0397,3485.6,3485.5,2.2776]
[1754228875784,0.7193,3485.6,3485.5,2.2776]
[1754228876381,0.7193,3485.8,3485.7,0.8859]
[1754228876583,0.4386,3486.1,3485.7,2.2776]
[1754228876789,1.0397,3486.1,3486.0,2.2776]
[1754228877083,2.69732464,3486.1,3486.0,2.2776]
[1754228877481,1.8264,3486.1,3486.0,2.2776]
[1754228877681,1.8264,3486.1,3486.0,1.817]
[1754228877985,2.2063,3486.1,3486.0,1.817]
[1754228878284,2.2063,3486.1,3486.0,0.7364]
[1754228878986,2.2063,3486.1,3486.0,1.3322]
[1754228879284,2.2063,3486.1,3485.7,0.9454]
[1754228879285,1.47326,3485.8,3485.7,0.7364]
[1754228879677,2.29176,3485.8,3485.7,0.7364]
[1754228879874,2.78006,3485.8,3485.7,0.7364]
[1754228880084,0.57388,3485.1,3484.9,3.6541]
[1754228880290,0.8995,3485.1,3485.0,1.817]
[1754228880478,0.57378,3485.7,3485.1,0.9311]
[1754228880779,2.78008,3485.7,3485.6,1.3322]
[1754228880980,2.78008,3485.7,3485.6,1.0135]
[1754228881187,2.78008,3485.7,3485.6,0.7364]
[1754228881383,2.78008,3485.7,3485.6,1.0135]
[1754228881782,2.78008,3485.7,3485.6,1.817]
[1754228881783,2.40018,3485.7,3485.6,1.817]
[1754228882085,2.78008,3485.7,3485.6,1.817]
[1754228883186,1.8859,3485.3,3485.2,1.0135]
[1754228883491,1.96162,3485.5,3485.4,1.817]
[1754228883792,2.34152,3485.5,3485.4,1.817]
[1754228884090,2.2063,3485.5,3485.4,1.817]
[1754228884992,1.8264,3485.5,3485.4,2.2776]
[1754228887094,1.38245,3485.9,3485.8,1.817]
[1754228887280,1.96155,3485.9,3485.8,1.817]
[1754228887487,0.57375,3485.9,3485.4,0.57382]
[1754228887792,1.528,3485.4,3485.3,5.4854]
[1754228888695,1.0397,3485.4,3485.3,5.4854]
[1754228889403,3.2078,3486.0,3485.4,1.50493]
[1754228889587,3.6464,3486.4,3486.0,1.3465]
[1754228889787,1.5457,3486.3,3486.2,0.6088]
[1754228889994,1.8264,3486.3,3486.2,1.817]
[1754228890294,2.2063,3486.3,3486.2,1.817]
[1754228891090,1.85298,3486.9,3486.8,0.2901]
[1754228891299,2.72312918,3486.9,3486.8,0.7364]
[1754228891689,3.65002918,3486.9,3486.8,0.7364]
[1754228891990,2.77988,3486.9,3486.8,0.7364]
[1754228892597,2.77988,3486.9,3486.8,1.817]
[1754228892799,1.0397,3486.7,3486.6,2.2776]
[1754228893096,1.8264,3486.7,3486.6,1.817]
[1754228893296,2.2063,3486.7,3486.6,1.817]
[1754228894497,1.8264,3486.7,3486.6,1.817]
[1754228894802,1.0292,3486.9,3486.8,1.3709]
[1754228895092,1.0292,3486.9,3486.8,2.2432]
[1754228895999,1.7998,3487.1,3487.0,2.2432]
[1754228896192,2.1718,3487.1,3487.0,1.788]
[1754228899298,1.0292,3487.1,3487.0,2.2432]
[1754228899492,0.475,3487.3,3487.2,0.9016]
[1754228899493,1.0768,3487.3,3487.2,0.9016]
[1754228899799,1.0768,3487.3,3487.2,2.2432]
[1754228900197,0.7103,3487.3,3487.2,2.2432]
[1754228900897,1.0292,3487.3,3487.2,2.2432]
[1754228901398,2.1718,3487.3,3487.2,2.2432]
[1754228901699,1.7998,3487.3,3487.2,2.2432]
[1754228902796,0.9024,3487.7,3487.3,0.99062]
[1754228902997,1.5042,3487.7,3487.6,1.788]
[1754228903395,1.5042,3487.7,3487.6,2.2432]
[1754228903902,0.7103,3487.7,3487.6,2.2432]
[1754228904699,1.0292,3487.7,3487.6,2.2432]
[1754228904904,1.5042,3487.7,3487.6,2.2432]
[1754228907707,1.0768,3487.9,3487.8,0.9016]
[1754228908006,1.0768,3487.9,3487.8,2.2432]
[1754228908196,1.5042,3487.9,3487.8,2.2432]
[1754228908907,1.5042,3487.9,3487.0,19.81]
[1754228908908,1.0292,3488.4,3488.3,1.3187]
[1754228909103,3.2078,3488.6,3488.5,1.788]
[1754228909104,5.0076,3488.6,3488.5,1.788]
[1754228909302,0.8974,3488.3,3488.2,1.788]
[1754228909502,2.1718,3488.3,3488.2,1.788]
[1754228911610,1.94583,3487.8,3487.4,0.4693]
[1754228911804,1.94583,3487.8,3487.3,3.78131]
[1754228911805,2.74528,3487.6,3487.3,3.2078]
[1754228912011,2.1718,3487.4,3487.3,3.4957]
[1754228912209,2.1718,3487.4,3487.3,3.7844]
[1754228912512,2.1718,3487.4,3487.3,4.9958]
[1754228913512,2.1718,3487.4,3487.3,0.9937]
[1754228914412,2.1718,3487.4,3487.3,0.705]
[1754228917720,2.1718,3487.0,3486.9,3.7844]
[1754228917917,2.1718,3487.0,3486.9,0.5766]
[1754228918411,2.1718,3487.0,3486.9,0.9937]
[1754228919310,2.1718,3487.0,3486.9,0.2887]
[1754228919627,2.1718,3486.7,3486.6,41.7141]
[1754228919819,2.1718,3486.7,3486.6,42.1834]
[1754228920118,2.1718,3486.7,3486.3,0.4693]
[1754228920422,0.4274,3486.6,3486.4,0.57366]
[1754228920619,0.4274,3486.6,3486.2,19.787]
[1754228920620,1.2694,3487.0,3486.9,0.9016]
[1754228920818,1.7444,3487.0,3486.9,1.788]
[1754228921119,2.1718,3487.0,3486.9,1.788]
[1754228921517,1.7998,3487.0,3486.9,2.2432]
[1754228922122,2.1718,3487.0,3486.9,2.2432]
[1754228923124,1.7998,3487.0,3486.9,2.2432]
[1754228923424,1.5042,3487.0,3486.9,2.2432]
[1754228926017,2.1561,3487.0,3486.9,2.2432]
[1754228926223,2.1561,3487.0,3486.9,1.788]
[1754228927219,0.6094,3486.7,3486.6,21.9896]
[1754228927523,2.1839,3486.7,3486.6,21.9896]
[1754228928526,2.1839,3486.7,3486.6,1.8058]
[1754228928717,2.1839,3486.7,3486.6,0.7264]
[1754228929125,2.1839,3486.7,3486.6,1.8058]
[1754228930933,2.1839,3486.7,3486.6,0.7264]
[1754228931121,2.1839,3486.7,3486.6,1.4927]
[1754228932427,2.1839,3486.7,3486.6,1.8058]
[1754228932622,0.4873,3486.6,3486.4,19.767]
[1754228932822,2.1839,3486.5,3486.4,21.5728]
[1754228933423,2.1839,3486.5,3486.4,21.9806]
[1754228933925,1.8276,3486.5,3486.4,21.9806]
[1754228936031,2.1787,3486.5,3486.4,21.9806]
[1754228936824,1.47201,3486.2,3485.9,0.4461]
[1754228937022,2.1787,3486.0,3485.9,20.0333]
[1754228937232,2.1787,3486.0,3485.9,20.7656]
[1754228937426,2.1787,3486.0,3485.9,21.5588]
[1754228938334,2.1787,3486.0,3485.9,21.9666]
[1754228938535,1.5306,3486.0,3485.9,21.9666]
[1754228938937,0.4873,3486.3,3485.9,21.20634]
[1754228939135,0.3511,3486.4,3485.9,21.20634]
[1754228939136,1.5306,3486.5,3486.4,2.2136]
[1754228939536,1.8276,3486.5,3486.4,2.2136]
[1754228939742,2.1787,3486.5,3486.4,2.2136]
[1754228940242,1.0433,3486.5,3486.4,2.2136]
[1754228940639,0.6013,3486.8,3486.7,1.3597]
[1754228940844,1.5306,3486.8,3486.7,2.2136]
[1754228941543,1.8276,3486.8,3486.7,2.2136]
[1754228941839,5.40361199,3486.8,3486.7,2.2136]
[1754228942741,5.40361199,3486.8,3486.7,1.8058]
[1754228943245,5.40361199,3486.8,3486.3,3.78148]
[1754228943246,2.1787,3486.4,3486.3,1.0126]
[1754228943544,5.40361199,3486.4,3486.3,19.757]
[1754228943743,0.57368,3486.3,3486.0,0.4461]
[1754228943951,5.40361199,3486.1,3486.0,0.7264]
[1754228944135,5.40361199,3486.1,3486.0,20.4934]
[1754228944450,5.40361199,3486.1,3486.0,0.7264]
[1754228944643,2.1787,3486.1,3486.0,0.2803]
[1754228945148,2.1787,3486.1,3486.0,0.7264]
[1754228948046,2.45543,3486.0,3485.9,20.2181]
[1754228948241,2.75243,3486.0,3485.9,20.4984]
[1754228948837,1.5306,3486.0,3485.9,21.9856]
[1754228950848,3.2078,3486.4,3486.3,1.0126]
[1754228951050,0.86253,3486.6,3486.5,0.5993]
[1754228951348,2.75233,3486.6,3486.5,0.7264]
[1754228951650,2.7524,3486.2,3486.1,20.0383]
[1754228952053,2.7524,3486.2,3486.1,0.2803]
[1754228952253,1.47203,3486.0,3485.9,0.4461]
[1754228952551,1.47203,3486.0,3485.9,20.7756]
[1754228952749,1.47203,3486.0,3485.9,19.763]
[1754228953052,2.75243,3486.0,3485.9,21.0887]
[1754228953353,2.75243,3486.0,3485.9,21.5688]
[1754228956955,2.40133,3486.0,3485.9,21.9769]
[1754228957348,2.74223,3486.0,3485.9,21.5688]
[1754228960259,1.87445,3486.5,3486.4,0.8372]
[1754228960450,2.21535,3486.5,3486.4,0.6898]
[1754228960951,2.67695,3486.5,3486.4,0.6898]
[1754228961255,2.67695,3486.5,3486.2,19.738]
[1754228961256,2.677,3486.2,3486.1,0.6898]
[1754228961448,2.677,3486.2,3486.1,20.4288]
[1754228961647,2.677,3486.2,3486.1,20.4268]
[1754228963162,2.677,3486.2,3486.1,19.737]
[1754228963451,2.677,3486.2,3486.1,20.1617]
[1754228963756,2.677,3486.2,3486.1,21.4616]
[1754228963946,2.0688,3486.2,3486.1,21.8697]
[1754228968453,2.677,3486.2,3486.1,21.8697]
[1754228969161,2.3361,3486.2,3486.1,21.8697]
[1754228969663,0.4305,3486.2,3486.1,21.8697]
[1754228969862,3.79925858,3486.3,3486.1,20.5742]
[1754228970159,4.83275858,3486.3,3486.2,2.1327]
[1754228970459,5.29435858,3486.3,3486.2,2.1327]
[1754228970659,0.8703,3485.9,3485.8,3.2078]
[1754228970862,5.32887858,3485.9,3485.8,3.2078]
[1754228972462,5.32887858,3485.9,3485.8,3.8976]
[1754228974160,0.57373,3486.1,3485.8,4.045]
[1754228974365,5.29440858,3486.1,3486.0,2.1327]
[1754228974862,5.90260858,3486.1,3486.0,1.7246]
[1754228975460,5.90260858,3486.1,3486.0,1.2619]
[1754228976259,5.90260858,3486.1,3486.0,1.7246]
[1754228977357,5.90260858,3486.1,3486.0,0.6898]
[1754228978058,5.90260858,3486.1,3486.0,0.956]
[1754228978258,5.90260858,3486.1,3486.0,1.4187]
[1754228978470,1.44406,3485.8,3485.7,1.7246]
[1754228978661,5.90263858,3485.8,3485.7,21.4436]
[1754228979061,2.06891,3485.5,3485.4,5.3405]
[1754228979365,2.06891,3485.5,3485.4,25.0595]
[1754228979668,0.57381,3485.5,3485.4,25.0595]
[1754228979963,5.56178858,3485.5,3485.4,21.4436]
[1754228980160,5.90268858,3485.5,3485.4,21.4436]
[1754228980862,5.90268858,3485.5,3485.4,21.8517]
[1754228981466,5.56178858,3485.5,3485.4,21.8517]
[1754228981866,5.90268858,3485.5,3485.4,21.8517]
[1754228982667,5.90268858,3485.5,3485.4,1.0348]
[1754228982970,5.90268858,3485.5,3484.6,3.6159]
[1754228982971,1.7624,3485.1,3484.6,3.6159]
[1754228983270,5.32887858,3484.8,3484.7,2.1327]
[1754228983471,1.7624,3484.8,3484.7,21.8517]
[1754228983666,1.4951,3484.8,3484.7,21.8517]
[1754228983966,0.5739,3485.0,3484.9,2.1474]
[1754228984170,5.24427858,3485.0,3484.9,21.8664]
[1754228985568,5.52537858,3485.0,3484.9,2.1474]
[1754228985771,5.85107858,3485.0,3484.9,21.8664]
[1754228986573,5.85107858,3485.0,3484.9,21.4523]
[1754228987267,5.85107858,3485.0,3484.9,21.8664]
[1754228987468,5.52537858,3485.0,3484.9,21.8684]
[1754228987663,5.52537858,3485.0,3484.9,21.4543]
[1754228987868,5.85107858,3485.0,3484.9,21.8684]
[1754228988768,5.85107858,3485.0,3484.9,21.4543]
[1754228988967,5.85107858,3485.0,3484.9,21.4533]
[1754228989169,5.85107858,3485.0,3484.9,21.0012]
[1754228989367,2.29984,3484.7,3484.6,5.3552]
[1754228989569,5.85111858,3484.7,3484.6,25.0752]
[1754228989875,5.85111858,3484.7,3484.6,24.6611]
[1754228990168,5.85111858,3484.7,3484.6,24.6621]
[1754228990362,1.24999,3484.4,3484.3,0.6855]
[1754228990567,5.85116858,3484.4,3484.3,21.0022]
[1754228990768,5.85116858,3484.4,3484.3,21.4543]
[1754228990964,1.15522,3484.2,3484.1,3.2078]
[1754228991170,2.62562,3484.2,3484.1,1.7333]
[1754228991375,2.62562,3484.2,3484.1,1.2812]
[1754228992177,2.62562,3484.2,3484.1,0.9697]
[1754228992571,2.62562,3484.2,3484.1,0.6855]
[1754228994177,2.62562,3484.2,3484.1,1.1376]
[1754228994373,1.43632,3484.2,3483.9,20.75430989]
[1754228994574,1.2699,3484.1,3484.0,1.7333]
[1754228994777,0.57406,3484.0,3483.9,20.75430989]
[1754228994985,1.84396,3484.0,3483.9,1.71880989]
[1754228995278,2.62566,3484.0,3483.9,1.71880989]
[1754228995778,5.85123858,3484.0,3483.9,1.71880989]
[1754228996171,5.85123858,3484.0,3483.9,2.76660989]
[1754228997373,4.21437858,3484.0,3483.9,3.18070989]
[1754228997573,4.18944,3484.2,3484.0,1.2625]
[1754228997783,4.45784,3484.2,3484.1,2.1474]
[1754228998777,3.22557858,3484.3,3484.1,5.3552]
[1754228998972,3.22557858,3484.3,3484.2,2.1474]
[1754228999473,3.22557858,3484.6,3484.5,2.1474]
[1754228999977,3.90157858,3484.6,3484.5,2.1474]
[1754229000175,3.79944858,3485.2,3485.1,0.8849]
[1754229000377,4.78824858,3485.2,3485.1,2.1474]
[1754229000584,5.85104858,3485.2,3485.1,1.7333]
[1754229001181,5.85104858,3485.2,3485.1,0.2892]
[1754229001380,5.85104858,3485.2,3485.1,1.7333]
[1754229002577,5.85104858,3485.2,3485.1,2.1474]
[1754229002777,3.22557858,3485.4,3485.2,1.2625]
[1754229002980,3.22557858,3485.4,3485.3,2.1474]
[1754229005180,3.22557858,3485.4,3485.3,5.3552]
[1754229005583,3.2078,3486.1,3486.0,1.7333]
[1754229005884,4.245,3486.1,3486.0,2.1474]
[1754229006083,3.22557858,3486.2,3486.0,5.3552]
[1754229006286,3.63317858,3486.2,3486.1,2.1474]
[1754229006578,3.2078,3486.5,3486.4,0.8849]
[1754229006579,6.70177858,3486.5,3486.4,0.8849]
[1754229006884,3.90157858,3486.5,3486.4,2.1474]
[1754229007376,4.21437858,3486.5,3486.4,2.1474]
[1754229007572,4.67037858,3486.5,3486.4,2.1474]
[1754229007885,4.21437858,3486.5,3486.4,2.1474]
[1754229008583,3.22557858,3486.5,3486.4,2.1474]
[1754229008778,0.9888,3487.0,3486.9,1.0098]
[1754229008984,1.4448,3487.0,3486.9,1.6953]
[1754229009286,1.4448,3487.0,3486.9,2.1474]
[1754229010880,1.7259,3487.0,3486.9,2.1474]
[1754229011387,2.0411,3487.0,3486.9,1.7333]
[1754229011574,0.57356,3487.1,3487.0,0.3963]
[1754229011780,4.67037858,3487.1,3487.0,1.7333]
[1754229011980,1.89182,3487.3,3487.2,1.337]
[1754229012182,5.43259858,3487.3,3487.2,1.7333]
[1754229012677,0.9888,3487.3,3487.2,2.1474]
[1754229012880,0.4076,3487.4,3487.3,2.1474]
[1754229013277,1.4448,3487.4,3487.3,2.1474]
[1754229013685,1.4448,3487.4,3487.2,3.2078]
[1754229013686,3.2078,3487.8,3487.2,3.2078]
[1754229013890,4.6553,3487.8,3487.7,2.1119]
[1754229014083,1.4475,3487.8,3487.7,2.1119]
[1754229014685,0.9679,3487.8,3487.7,2.1119]
[1754229014990,0.8557,3487.3,3487.2,3.4867]
[1754229015287,2.0383,3487.1,3487.0,1.2419]
[1754229015486,2.0383,3487.1,3487.0,21.4312]
[1754229015885,1.4475,3487.1,3487.0,21.4312]
[1754229016086,0.6537,3487.1,3487.0,21.8269]
[1754229016282,2.0383,3487.1,3487.0,1.7162]
[1754229016587,2.0383,3487.1,3487.0,21.1222]
[1754229016788,2.0383,3487.1,3487.0,21.4312]
[1754229017189,2.0383,3486.8,3486.7,3.8775]
[1754229017383,5.26387858,3486.8,3486.7,24.637]
[1754229018285,5.26387858,3486.8,3486.7,3.5986]
[1754229018588,5.26387858,3486.8,3486.6,19.713]
[1754229018787,1.1826,3486.7,3486.6,20.1038]
[1754229018989,2.0383,3486.7,3486.6,20.3827]
[1754229019784,0.703,3486.4,3486.3,19.713]
[1754229019980,2.0383,3486.4,3486.3,20.3827]
[1754229021591,2.0383,3486.4,3486.3,20.6459]
[1754229022291,2.0383,3486.4,3486.3,20.3827]
[1754229022488,2.0383,3486.4,3486.3,19.9919]
[1754229022689,2.0383,3486.4,3486.3,19.713]
[1754229023089,2.0383,3486.4,3486.3,20.5641]
[1754229023295,2.0383,3486.4,3486.3,21.4292]
[1754229024203,2.0383,3486.4,3486.3,20.9549]
[1754229024407,2.0383,3486.4,3486.3,20.3827]
[1754229024611,2.0383,3486.4,3486.3,21.4292]
[1754229024899,0.6537,3486.4,3486.3,21.8249]
[1754229025108,1.0553,3486.7,3486.6,2.1119]
[1754229025406,1.3353,3486.7,3486.6,2.1119]
[1754229025601,1.7275,3486.7,3486.6,2.1119]
[1754229025807,2.0383,3486.7,3486.6,1.7162]
[1754229026700,0.9679,3486.7,3486.6,2.1119]
[1754229026905,3.2078,3486.8,3486.7,2.68551]
[1754229027205,3.6,3486.8,3486.7,2.1119]
[1754229027399,4.1757,3486.8,3486.7,2.1119]
[1754229027606,4.6553,3486.8,3486.7,2.1119]
[1754229027809,3.2078,3486.8,3486.7,2.1119]
[1754229028103,4.1757,3486.8,3486.7,2.1119]
[1754229028303,0.9679,3487.2,3487.1,1.2419]
[1754229028505,1.4475,3487.2,3487.1,1.7162]
[1754229028709,2.0383,3487.2,3487.1,1.7162]
[1754229029012,4.94777,3487.6,3487.5,1.7162]
[1754229029507,4.94777,3487.6,3483.7,264.83697526]
[1754229029508,1.16773,3487.2,3486.9,3.5986]
[1754229029711,1.7768,3486.9,3486.8,20.3807]
[1754229029911,2.61193,3486.6,3486.5,22.9188]
[1754229030209,2.61193,3486.6,3486.5,23.5885]
[1754229030404,2.0383,3486.6,3486.5,24.1607]
[1754229030709,1.7275,3486.6,3486.5,25.0307]
[1754229030909,2.0383,3486.6,3486.5,24.635]
[1754229032211,2.0383,3486.6,3486.5,24.1607]
[1754229032411,2.0383,3486.6,3486.5,23.8507]
[1754229032915,2.0383,3486.6,3486.5,0.6697]
[1754229033218,2.0383,3486.6,3486.5,20.3797]
[1754229033407,2.0383,3486.3,3486.2,0.6697]
[1754229033608,2.0383,3486.3,3486.2,20.3797]
[1754229034711,2.0383,3486.3,3486.2,20.6429]
[1754229035017,2.0383,3486.3,3486.2,21.4262]
[1754229035513,2.0383,3486.3,3486.2,19.71]
[1754229035712,1.6461,3486.1,3486.0,3.5986]
[1754229035915,5.37515321,3486.5,3485.5,3.5986]
[1754229035916,0.57378,3485.8,3485.5,3.5986]
[1754229036216,1.7275,3485.6,3485.5,4.924]
[1754229036408,1.7275,3485.6,3485.5,24.634]
[1754229037107,1.7275,3485.6,3485.5,25.0297]
[1754229037516,2.0383,3485.6,3485.5,24.634]
[1754229038308,2.0383,3485.6,3485.5,4.924]
[1754229038510,2.0383,3485.6,3485.5,3.2078]
[1754229038816,2.0383,3485.6,3485.5,22.9188]
[1754229039408,2.61216,3485.2,3485.1,0.9787]
[1754229040111,1.14961,3484.9,3484.8,20.9529]
[1754229040320,2.61221,3484.9,3484.8,21.4272]
[1754229040509,1.54181,3484.9,3484.8,19.711]
[1754229040708,2.61221,3484.9,3484.8,0.9787]
[1754229040914,2.61221,3484.9,3484.7,19.725]
[1754229041115,1.42964,3484.7,3484.6,4.1865]
[1754229041405,2.0383,3484.7,3484.6,4.924]
[1754229043118,2.0383,3484.7,3484.6,1.7162]
[1754229043321,2.61226,3484.6,3484.5,0.3908]
[1754229043513,2.61226,3484.6,3484.5,20.1108]
[1754229044017,2.61226,3484.6,3484.5,19.72]
[1754229044411,2.61226,3484.6,3484.5,20.1335]
[1754229044607,2.61226,3484.6,3484.5,20.3885]
[1754229044816,2.61226,3484.6,3484.5,21.4189]
[1754229045315,0.57401,3484.3,3484.2,0.7132]
[1754229045617,2.55161,3484.3,3484.2,0.9675]
[1754229046213,2.55161,3484.3,3484.2,1.4257]
[1754229046521,2.55161,3484.3,3484.2,1.6852]
[1754229046917,2.24821,3484.3,3483.9,1.03330989]
[1754229047114,2.55161,3484.3,3484.2,0.9675]
[1754229047318,2.55161,3484.3,3484.2,1.4257]
[1754229047522,2.55161,3484.3,3484.2,0.9675]
[1754229048419,1.9776,3484.3,3484.2,1.6852]
[1754229048718,0.386,3484.3,3484.2,1.6852]
[1754229048922,0.386,3484.4,3484.3,1.2689]
[1754229049222,1.4138,3484.4,3484.3,2.0824]
[1754229049421,1.6742,3484.4,3484.3,1.6852]
[1754229049616,1.9776,3484.4,3484.3,1.6852]
[1754229050811,0.9626,3484.4,3484.3,1.6852]
[1754229051014,1.4138,3484.4,3484.3,2.0824]
[1754229051214,1.9776,3484.4,3484.3,1.6852]
[1754229051622,0.57395,3484.7,3484.3,0.8135]
[1754229051819,5.1854,3485.0,3484.9,1.227]
[1754229052011,5.75929,3485.0,3484.9,1.6852]
[1754229053219,2.24809,3485.0,3484.9,2.0824]
[1754229053421,1.98769,3485.0,3484.9,2.0824]
[1754229053727,1.53649,3485.0,3484.9,2.0824]
[1754229055032,1.22209,3485.0,3484.9,2.0824]
[1754229055223,0.95987,3485.2,3485.1,1.2107]
[1754229055424,1.98767,3485.2,3485.1,2.0824]
[1754229055723,2.55147,3485.2,3485.1,1.6852]
[1754229055920,2.24807,3485.2,3485.1,2.0824]
[1754229056317,2.55147,3485.2,3485.1,2.0824]
[1754229057124,2.55147,3485.2,3485.1,1.6852]
[1754229057926,1.98767,3485.2,3485.1,2.0824]
[1754229058125,1.53647,3485.2,3485.1,2.0824]
[1754229058320,3.5938,3485.4,3485.1,0.8135]
[1754229058526,0.57379,3485.6,3485.5,0.8135]
[1754229058822,7.39700797,3485.8,3485.7,2.0824]
[1754229059029,8.41200797,3485.8,3485.7,1.6852]
[1754229060027,3.856,3485.8,3485.7,2.0824]
[1754229060232,0.386,3485.8,3485.7,2.0824]
[1754229060929,0.6482,3485.8,3485.7,2.0824]
[1754229061524,3.2078,3486.2,3486.1,2.0824]
[1754229062133,3.856,3486.2,3486.1,2.0824]
[1754229062632,3.2078,3486.2,3486.1,2.0824]
[1754229062931,3.5938,3486.2,3486.1,2.0824]
[1754229063434,4.1704,3486.2,3486.1,2.0824]
[1754229063632,4.6216,3486.2,3486.1,2.0824]
[1754229064932,3.2078,3486.2,3486.1,2.0824]
[1754229065234,4.1704,3486.2,3486.1,2.0824]
[1754229066036,3.2078,3486.2,3486.1,2.0824]
[1754229067029,0.386,3486.5,3486.1,0.8135]
[1754229067030,0.57365,3486.5,3486.1,0.8135]
[1754229067239,0.6482,3486.4,3486.3,2.0824]
[1754229067433,0.6482,3486.4,3486.3,21.7994]
[1754229068729,1.4138,3486.4,3486.3,21.7994]
[1754229069033,1.6742,3486.4,3486.3,21.7994]
[1754229069239,1.9776,3486.4,3486.3,1.227]
[1754229069438,1.9776,3486.1,3486.0,1.6852]
[1754229069737,1.4138,3486.1,3486.0,21.7974]
[1754229070438,1.6742,3486.1,3486.0,21.7974]
[1754229070739,1.9776,3486.1,3486.0,21.4002]
[1754229071431,1.6742,3486.1,3486.0,21.7974]
[1754229073336,1.9776,3486.1,3486.0,21.4002]
[1754229074540,1.6742,3486.1,3486.0,21.787]
[1754229075236,1.4138,3486.1,3486.0,21.787]
[1754229075435,2.01523,3486.7,3486.6,0.8299]
[1754229075629,2.27303,3486.7,3486.6,1.6784]
[1754229075824,1.4416,3486.7,3486.6,1.6784]
[1754229076135,3.2078,3486.9,3486.8,0.8299]